Cogmind - Beta 12 @@@ ROGUE MODE // 2023.11.05 @ 01:41:37 Player: Pitt Result: Destroyed by S-10 Pest with Light Assault Rifle Performance ------------- Evolutions (1) 500 Regions Visited (2) 400 Robots Destroyed (24) 120 Value Destroyed (521) 521 Prototype IDs (0) 0 Alien Tech Used (0) 0 Bonus (0) 0 TOTAL SCORE: 1541 Bonus ------- None Cogmind --------- Core Integrity 0/400 Matter 300/300 Energy 250/250 System Corruption 0% Temperature Cool (0) Movement Walking (130) Location -9/Materials Parts ------- > --- POWER (1) -------- Ion Engine > --- PROPULSION (2) --- Titanium Leg Titanium Leg > --- UTILITY (4) ------ Medium Storage Unit Melee Analysis Suite Melee Analysis Suite Melee Analysis Suite > --- WEAPON (2) ------- Heavy Mace Heavy Mace > --- INVENTORY (10) --- Aluminum Leg Titanium Leg Titanium Leg Medium Storage Unit Large Storage Unit Melee Analysis Suite Medium Armor Plating Grenade Launcher Heavy Mace Heavy Mace Peak State ------------ > --- POWER ------------ Ion Engine > --- PROPULSION ------- Titanium Leg Titanium Leg > --- UTILITY ---------- Medium Storage Unit Melee Analysis Suite Melee Analysis Suite Melee Analysis Suite > --- WEAPON ----------- Heavy Mace Heavy Mace > --- INVENTORY -------- Aluminum Leg Titanium Leg Titanium Leg Medium Storage Unit Large Storage Unit Melee Analysis Suite Medium Armor Plating Grenade Launcher Heavy Mace Heavy Mace [Rating: 25] Favorites ----------- Power Light Ion Engine Engine Light Ion Engine Propulsion Wheel Leg Titanium Leg Wheel Wheel Utility Small Storage Unit Device Improved Terrain Scanner Storage Small Storage Unit Processor Terrain Scan Processor Weapon Light Assault Rifle Ballistic Gun Light Assault Rifle Launcher Grenade Launcher Special Weapon Mining Laser Impact Weapon Heavy Mace Build | -11 -10 -9 ------- Run | Jun Mat Mat Slots Evolved 2 | . . 2 Power . | . . . Propulsion . | . . . Utility 2 | . . 2 Weapon . | . . . Parts Attached 28 | 7 4 17 Power 4 | 1 2 1 Engine 4 | 1 2 1 Core . | . . . Reactor . | . . . Propulsion 6 | 2 . 4 Treads . | . . . Leg 2 | . . 2 Wheel 4 | 2 . 2 Hover . | . . . Flight . | . . . Utility 8 | 2 . 6 Device 2 | 1 . 1 Storage 2 | 1 . 1 Processor 4 | . . 4 Hackware . | . . . Protection . | . . . Artifact . | . . . Weapon 10 | 2 2 6 Energy Gun . | . . . Energy Cannon . | . . . Ballistic Gun 5 | 2 1 2 Ballistic Cannon . | . . . Launcher 1 | . . 1 Special Weapon 2 | . 1 1 Impact Weapon 2 | . . 2 Slashing Weapon . | . . . Piercing Weapon . | . . . Special Melee Weapon . | . . . Unidentified Prototypes . | . . . Parts Lost 11 | . 1 10 Power 2 | . 1 1 Propulsion 3 | . . 3 Utility 2 | . . 2 Weapon 4 | . . 4 Highest Loss Streak 8 | . 1 8 To Critical Strikes 2 | . . 2 Average Slot Usage (%) 95 | . 99 90 Engine 11 | . 13 10 Leg 3 | . . 7 Wheel 20 | . 28 12 Device 13 | . 14 12 Storage 12 | . 14 11 Processor 7 | . . 15 Ballistic Gun 19 | . 27 11 Impact Weapon 4 | . . 8 Naked Turns . | . . . Heaviest Build 21 | 11 12 21 Greatest Support 34 | 26 26 34 Greatest Overweight (x) 2 | . . 2 Average Overweight (x) . | . . . Largest Inventory Capacity 10 | 8 8 10 Average Capacity 8 | 7 8 8 Most Carried 10 | 6 8 10 Average Carried 6 | 3 7 6 Final Capacity 10 | 8 8 10 Final Carried 10 | 6 8 10 Class Distribution -------------------- 71% | Mutant 28% | Scavenger-Mutant Dominant Class ---------------- Mutant | -10/Materials Scavenger-Mutant | -9/Materials Resources | -11 -10 -9 ----------- Run | Jun Mat Mat Matter Collected 614 | 268 145 201 Remotely . | . . . Salvage Created 715 | 58 302 355 Parts 40 | 6 19 15 Haulers Intercepted . | . . . Recyclers Shooed 1 | 1 . . Parts Field Recycled . | . . . Retrieved Matter . | . . . Parts Self-Destructed . | . . . Prevented . | . . . Kills | -11 -10 -9 ------- Run | Jun Mat Mat Combat Hostiles Destroyed 14 | . 4 10 Melee 4 | . . 4 Guns 8 | . 4 4 AOE 1 | . . 1 Classes Destroyed 7 | 1 4 2 Builder 2 | . 1 1 Tunneler 3 | 3 . . Recycler 3 | . 2 1 Watcher 2 | . 1 1 Swarmer 6 | . . 6 Grunt 6 | . 4 2 Sentry 2 | . . 2 Best Kill Streak 4 | 3 3 4 Combat Bots Only 4 | . 2 4 Max Kills in Single Turn 2 | 1 1 2 Gunslinging . | . . . Exploded 1 | . . 1 Melee 1 | . . 1 Uniques/NPCs Destroyed . | . . . Combat | -11 -10 -9 -------- Run | Jun Mat Mat Damage Taken 1389 | . 389 1000 Core 516 | . 113 403 Absorbed by Shields . | . . . Core Remaining (%) 77 | 100 54 . Volleys Fired 62 | 10 28 24 Largest 2 | 2 2 2 Hottest 100 | 40 100 100 Shots Fired 108 | 20 55 33 Gun 101 | 20 54 27 Cannon . | . . . Launcher 5 | . . 5 Special 2 | . 1 1 Kinetic 101 | 20 54 27 Thermal 2 | . 1 1 Explosive 5 | . . 5 Electromagnetic . | . . . Robot Hit Streak 20 | 12 20 7 Robot Miss Streak 6 | 1 2 6 Penetration Max . | . . . Secondary Targets 1 | . . 1 Max Gunslinging Chain 1 | . . 1 Shots Hit Robots 89 | 18 41 30 Core Hits 39 | 6 18 15 Critical Kills . | . . . Critical Parts Destroyed 3 | . . 3 Critical Strikes 3 | . . 3 Destroy 1 | . . 1 Smash 2 | . . 2 Melee Attacks 19 | . . 19 Impact 19 | . . 19 Slashing . | . . . Piercing . | . . . Sneak Attacks 1 | . . 1 Combat Hostiles . | . . . Follow-up Attacks 1 | . . 1 Damage Inflicted 1522 | 144 492 886 Guns 677 | 144 403 130 Cannons . | . . . Explosions 261 | . 89 172 Melee 584 | . . 584 Ramming . | . . . Kinetic 677 | 144 403 130 Thermal 108 | . . 108 Explosive 153 | . 89 64 Electromagnetic . | . . . Impact 584 | . . 584 Slashing . | . . . Piercing . | . . . Highest Corruption . | . . . Average Corruption . | . . . Corruption Purged . | . . . Corruption Blocked . | . . . Overload Shots . | . . . Overflow Damage 228 | . 39 189 Projectiles . | . . . Explosions 87 | . 39 48 Melee 141 | . . 141 Knockbacks . | . . . Impact . | . . . Kinetic . | . . . Secondary . | . . . Self-Inflicted Damage 64 | . 64 . Shots 2 | . 2 . Rammed . | . . . Targets Rammed . | . . . Kicked . | . . . Crushed . | . . . Highest Temperature 20 | . 20 17 Average Temperature 9 | . 9 6 Received Heat Transfer 462 | . 171 291 Siege Activations . | . . . Robots Corrupted . | . . . Combat Hostiles . | . . . Parts Fried 4 | . . 4 Impact Corruptions 6 | . . 6 Robots Melted . | . . . Combat Hostiles . | . . . Parts Melted . | . . . Heat Transferred 100 | . . 100 Parts Sabotaged . | . . . Parts Stolen . | . . . Parts Stripped . | . . . Power Chain Reactions . | . . . Missiles Intercepted . | . . . Alert | -11 -10 -9 ------- Run | Jun Mat Mat Peak Influence 253 | 15 148 253 Initial 14 | . 9 14 Average 43 | 9 21 69 Maximum Alert Level 1 | . . 1 Low Security (%) 97 | 100 100 94 Level 1 2 | . . 5 Level 2 . | . . . Level 3 . | . . . Level 4 . | . . . Level 5 . | . . . High Security . | . . . Max Security . | . . . Squads Dispatched 2 | . . 2 Investigation 1 | . . 1 Extermination . | . . . Reinforcement 1 | . . 1 Assault . | . . . Garrison . | . . . Intercept . | . . . Searches Triggered . | . . . Construction Impeded . | . . . Haulers Reinforced . | . . . Active Scanning Responses . | . . . Cargo Convoy Interrupts . | . . . Stealth | -11 -10 -9 --------- Run | Jun Mat Mat Distress Signals . | . . . Communications Jammed . | . . . Distress Signals . | . . . Times Spotted 22 | . 6 16 Peak Tracking Total 6 | . 2 6 Tactical Retreats . | . . . Traps | -11 -10 -9 ------- Run | Jun Mat Mat Traps Triggered 2 | . 1 1 Indirectly . | . . . Trap Hack Attempts . | . . . Triggered . | . . . Disarmed . | . . . Reprogrammed . | . . . Reused . | . . . Traps Extracted . | . . . Installed . | . . . Triggered . | . . . Machines | -11 -10 -9 ---------- Run | Jun Mat Mat Machines Disabled 6 | . 2 4 Max in Single Turn 3 | . 2 3 Machines Repaired . | . . . Machines Sabotaged . | . . . Overloaded Fab Kills . | . . . Hacking | -11 -10 -9 --------- Run | Jun Mat Mat Machines Accessed 2 | . . 2 Terminals 2 | . . 2 Fabricators . | . . . Repair Stations . | . . . Recycling Units . | . . . Scanalyzers . | . . . Garrison Access . | . . . Total Hacks 4 | . . 4 Successful 2 | . . 2 Failed 2 | . . 2 Catastrophic . | . . . Database Lockouts . | . . . Manual 3 | . . 3 Terminals 4 | . . 4 Fabricators . | . . . Repair Stations . | . . . Recycling Units . | . . . Scanalyzers . | . . . Garrison Access . | . . . Terminal Hacks 2 | . . 2 Terminal Index 1 | . . 1 Alert Level 1 | . . 1 Fabricator Hacks . | . . . Repair Station Hacks . | . . . Recycling Unit Hacks . | . . . Scanalyzer . | . . . Garrison Access Hacks . | . . . Unauthorized Hacks . | . . . Terminals . | . . . Fabricators . | . . . Repair Stations . | . . . Recycling Units . | . . . Scanalyzers . | . . . Garrison Access . | . . . Data Cores Recovered . | . . . Used . | . . . Hacking Detections 2 | . . 2 Full Trace Events . | . . . Feedback Events . | . . . Feedback Blocked . | . . . Robot Schematics Acquired . | . . . Robots Built . | . . . Authchips . | . . . Time . | . . . Total Robot Build Rating . | . . . Part Schematics Acquired . | . . . Parts Built . | . . . Authchips . | . . . Time . | . . . Total Part Build Rating . | . . . Parts Repaired . | . . . Time . | . . . Parts Recycled . | . . . Recycled Matter . | . . . Retrieved Matter . | . . . Retrieved Components . | . . . Parts Scanalyzed . | . . . Part Schematics Acquired . | . . . Parts Damaged . | . . . Bothacking | -11 -10 -9 ------------ Run | Jun Mat Mat Used RIF Installer . | . . . Robots Hacked . | . . . Non-combat . | . . . Combat . | . . . Robot Hacks Applied . | . . . Relay Couplers Released . | . . . Fabnet Peak Effective % . | . . . Robots Rewired . | . . . Allies Hacked . | . . . Hacks Repelled . | . . . Allies | -11 -10 -9 -------- Run | Jun Mat Mat Total Allies . | . . . Largest Group . | . . . Highest-Rated Group . | . . . Highest-Rated Ally . | . . . Total Orders . | . . . Ally Attacks . | . . . Total Damage . | . . . Kills . | . . . Allies Corrupted . | . . . Allies Melted . | . . . Intel | -11 -10 -9 ------- Run | Jun Mat Mat Robot Analysis Total . | . . . Derelict Logs Recovered . | . . . Drone Launches . | . . . Drone Recoveries . | . . . Exploration | -11 -10 -9 ------------- Run | Jun Mat Mat Turns Passed 2543 | 141 1203 1199 Spaces Moved 739 | 111 263 365 Core 38 | 2 . 36 Treads . | . . . Legs 225 | . . 225 Wheels 476 | 109 263 104 Hover . | . . . Flight . | . . . Fastest Speed 50 | 50 90 80 Average Speed 103 | 89 90 116 Slowest Speed 150 | 90 90 150 Overloaded Moves . | . . . Propulsion Burnouts . | . . . Robots Hopped . | . . . Cave-ins Triggered . | . . . Exploration Rate (%) 20 | 4 36 21 Regions Visited 2 Branch Regions . Pre-discovered Areas . | . . . Known Exits Taken . | . . . Unknown Exits Taken 2 | 1 1 . Scrap Searched . | . . . Spaces Dug 3 | . 1 2 Terrain Destroyed 107 | . 29 78 Melee 1 | . . 1 Projectile 2 | . 1 1 AOE 104 | . 28 76 Terrain Rammed . | . . . Walls Destroyed . | . . . Machines Disabled . | . . . Actions | -11 -10 -9 --------- Run | Jun Mat Mat Total 2385 | 134 1178 1073 Wait 1514 | . 880 634 Move 737 | 110 262 365 Hop . | . . . Pick Up 19 | 7 3 9 Fast Attach 15 | 6 1 8 Attach 8 | 1 . 7 Detach 3 | . . 3 Swap 5 | . 3 2 Drop 4 | . 1 3 Fire 62 | 10 28 24 Melee 18 | . . 18 Ram . | . . . Kick . | . . . Crush . | . . . Escape Stasis . | . . . Rewire . | . . . Trap . | . . . Miscellaneous . | . . . Route ------- -11/Junkyard -10/Materials (discovered 2 exits: *Mat / [*Min]) -9/Materials History --------- Turn | Location | Event 11 | -11/Junkyard | Discovered new exit (range 16) 142 | -11/Junkyard | Entered Materials 314 | -10/Materials | Build established: Mutant 1145 | -10/Materials | Discovered new exit (range 8) 1211 | -10/Materials | Discovered new exit (range 7) 1345 | -10/Materials | Entered another Materials area 1345 | -9/Materials | Evolved 2 slots: Utility x2 1633 | -9/Materials | Build established: Scavenger-Mutant 2012 | -9/Materials | Core integrity fell below 50% 2025 | -9/Materials | Lost 8 parts (1p2n1u4w) 2079 | -9/Materials | Core integrity fell below 20% 2425 | -9/Materials | Build established: Mutant 2544 | -9/Materials | Destroyed by S-10 Pest with Light Assault Rifle Last Messages --------------- 02346_ R-06 Scavenger collects Corrupted Aluminum Leg. 02349_ Acquired 35 matter. 02350_ Sneak attack on R-06 Scavenger. 02350_ Destroyed Com. Wheel. 02350_ R-06 Scavenger system corrupted by crushing effect. 02350_ R-06 Scavenger destroyed. 02355_ Acquired Corrupted Aluminum Leg. 02356_ Acquired 52 matter. 02398_ Acquired Med. Armor Plating. 02499_ Connecting with Terminal... >>Alert(Check) Current Alert Level: Low Security 02532_ Destroyed Lgt. Ion Engine. 02532_ S-10 Pest system corrupted by crushing effect. 02535_ Hvy. Mace follow-up attack on S-10 Pest. 02535_ Flight Unit fried. 02535_ S-10 Pest destroyed. 02540_ Destroyed Flight Unit. 02540_ S-10 Pest system corrupted by crushing effect. 02540_ S-10 Pest destroyed. Map ----- +----------------------------------------------------+ | | | | | | | | | | | | | | | | | ????????????????????????????????????????????? | | ????????????????????????????????????????????? | | ????????????????????????????????????????????? | | ????????????????????????????????????????????? | | ????????????????????????????????????????????? | | ????????????????????????????????????????????? | | ????????????????????????????????????????????? | | ????????????????????????????????????????????? | | ????????????????????????????????????????????? | | ????????????????????????????????????????????? | | ????????????###????#+#??????????????????????? | | ????????????# ???? ??????????????????????? | | ????????????? ??? ??????????????????????? | | ???????????####/####s#####??????????????????? | | ??????????? # #??????????????????? | | ??????????#? """ # "" #??????????????????? | | ??????????# """"" # %"" #??????????????????? | | ??????????# """"" s@*T" #??????????????????? | | ??????????# """"" # "" #??????????????????? | | ??????????# """ # "" #??????????????????? | | ??????????# # #??????????????????? | | ??????????# # """ #??????????????????? | | ??????????#! # """ #??????????????????? | | ??????????######+### """ #??????????????????? | | ???????????????# #?# #??????????????????? | | ???????????????# #?# ?#??????????????????? | | ???????????????# #??##??????????????????????? | | ???????????????# #???######?????????????????? | | ???????????????# #???# T #?????????????????? | | ????# #####+#### #???# #?????????????????? | | ????# #???# #?????????????????? | | ????????### ##??# #?????????????????? | | ??????????# #### #?????????????????? | | ??????????# + #?????????????????? | | ??#####???# #### #?????????????????? | | ??# ##### ####+##??# #?????????????????? | | ??# #????????######?????????????????? | | ??# #######???????????????????????????????? | | ??## ##?????????????????????????????????????? | | ???# #??????????????????????????????????????? | | ???# #??????????????????????????????????????? | | ???# #??????????????????????????????????????? | +----------------------------------------------------+ Best States ------------- Heat Dissipation 28 Energy Generation 10 Energy Capacity 250 Matter Stores 300 Matter Capacity 300 Sight Range 16 Terrain Scan Range 16 Terrain Scan Density 85 Evasion (%) 55 Melee Accuracy 15 Item Schematics ----------------- None Robot Schematics ------------------ None Fabricated ------------ Nothing Alien Tech Used ----------------- None Achievements -------------- None Challenges ------------ None Game ------ Seed RestorationArchitectShotgun Manual? 0 Play Time 00:14:04 Cumulative 179.0 hours Start 2023.11.05 @ 01:28:18 End 2023.11.05 @ 01:41:37 Sessions 1 Manual Loads 0 Difficulty Rogue Special Mode None Game No. 273 Rogue 273 Adventurer 0 Explorer 0 Win Type - Total 0 Types 0/0/0/0/0/0/0/0/0 Lore% 51 Gallery% 59 Achievement% 40 Wizard Run 0 Options --------- ASCII 0 Keyboard 0 Movement Mouse Keybinds 0 Fullscreen 1 Font 12/Smallcaps Map View 83x54 Tactical HUD 1 Map Filters NONE Filters NONE Steam 1 RUN: c68814dd-a431-4d05-b439-2c50aa1b17f6